bitfinex-derivatives/quotes_ETHF0:USTF0_20251210
["timestamp","ask_amount","ask_price","bid_price","bid_amount"]
[1765343003196,1.4279,3322.6,3322.5,0.7288]
[1765343003798,1.4279,3322.6,3322.5,1.3995]
[1765343004096,3.2078,3322.7,3322.6,1.3794]
[1765343004595,3.9103,3322.7,3322.6,1.3794]
[1765343004798,4.6001,3322.7,3322.6,1.3794]
[1765343005296,4.6001,3322.7,3322.6,0.6961]
[1765343005491,1.3923,3322.6,3322.5,0.6961]
[1765343006701,1.3923,3322.6,3322.5,1.3794]
[1765343007401,0.7025,3322.6,3322.5,1.8]
[1765343007600,3.9103,3322.7,3322.6,1.3794]
[1765343010001,4.6001,3322.7,3322.6,1.3794]
[1765343010198,4.6001,3322.7,3322.6,0.6961]
[1765343010399,0.7025,3322.3,3322.2,1.52989]
[1765343011100,4.6001,3322.7,3322.6,0.6961]
[1765343011307,5.24991866,3322.7,3322.6,0.6961]
[1765343013794,3.85761866,3322.7,3322.2,1.52989]
[1765343013997,3.85761866,3322.7,3322.5,1.3794]
[1765343013998,2.04211866,3322.6,3322.5,1.3794]
[1765343016801,0.64981866,3322.6,3322.5,1.8]
[1765343017201,1.35231866,3322.6,3322.5,1.8]
[1765343017401,2.04211866,3322.6,3322.5,1.8]
[1765343018407,1.3923,3322.3,3322.2,3.14836481]
[1765343018701,0.7025,3322.3,3322.2,2.99787481]
[1765343018902,1.3923,3322.3,3322.2,2.99787481]
[1765343019103,4.6001,3322.7,3322.6,0.6961]
[1765343019300,5.25037559,3322.7,3322.6,0.6961]
[1765343020199,0.7025,3322.3,3322.2,2.99787481]
[1765343020501,2.04257559,3322.6,3322.5,0.6961]
[1765343020700,1.3923,3322.3,3322.2,2.99787481]
[1765343020899,1.3923,3322.3,3322.2,1.3794]
[1765343021300,1.3923,3322.3,3322.2,2.99787481]
[1765343021803,1.3923,3322.3,3322.2,1.61847481]
[1765343022206,1.3923,3322.3,3322.2,2.31457481]
[1765343023302,1.3923,3322.3,3322.2,0.6961]
[1765343023909,1.3923,3322.2,3322.1,2.99998359]
[1765343024205,4.6001,3322.7,3322.6,0.6961]
[1765343024401,5.50714305,3322.7,3322.6,1.3794]
[1765343025605,5.50714305,3322.7,3322.6,0.6961]
[1765343025805,1.3923,3322.3,3322.2,3.00201124]
[1765343026406,0.7025,3322.3,3322.2,3.00201124]
[1765343028410,1.3923,3322.3,3322.2,3.00201124]
[1765343030304,0.7025,3322.3,3322.2,3.00201124]
[1765343031613,1.3923,3322.3,3322.2,3.00201124]
[1765343032516,0.7025,3322.3,3322.2,3.00201124]
[1765343033816,1.35333673,3322.5,3322.4,1.4093]
[1765343034012,0.7025,3322.5,3322.4,1.4093]
[1765343035614,1.37433673,3322.6,3322.5,1.8227]
[1765343035915,1.63079146,3322.6,3322.5,1.8227]
[1765343036816,0.90729146,3322.6,3322.5,1.8227]
[1765343037118,1.37433673,3322.6,3322.5,1.8227]
[1765343037325,2.11503673,3322.6,3322.5,1.8227]
[1765343037517,1.4642,3322.3,3322.2,3.01681124]
[1765343037917,0.7235,3322.3,3322.2,3.01681124]
[1765343038118,1.4642,3322.3,3322.2,3.01681124]
[1765343038522,0.7235,3322.3,3322.2,3.01681124]
[1765343040622,1.4642,3322.3,3322.2,3.01681124]
[1765343040933,2.11517274,3322.3,3322.2,3.01681124]
[1765343041630,1.4642,3322.2,3322.1,1.62472002]
[1765343041823,1.4642,3322.2,3322.1,0.00210878]
[1765343041824,2.11517274,3322.2,3322.1,0.00210878]
[1765343042022,5.57948708,3322.2,3322.1,0.00210878]
[1765343042228,5.32297274,3322.2,3322.1,0.00210878]
[1765343044934,6.25366126,3322.2,3322.1,0.00210878]
[1765343055045,6.25366126,3322.2,3322.1,1.36260878]
[1765343055344,5.29587274,3322.2,3322.1,0.68780878]
[1765343055737,5.29587274,3322.2,3322.1,0.00210878]
[1765343056339,5.30487274,3322.2,3322.1,1.36260878]
[1765343057548,5.30487274,3322.2,3322.1,0.68780878]
[1765343058045,5.30487274,3322.2,3322.1,1.36260878]
[1765343059346,3.85877274,3322.2,3322.1,1.36260878]
[1765343059547,5.30487274,3322.2,3322.1,1.36260878]
[1765343060248,5.30487274,3322.2,3322.1,0.00210878]
[1765343060947,5.30487274,3322.2,3322.1,0.68780878]
[1765343061747,3.85877274,3322.2,3322.1,1.36260878]
[1765343061946,4.6539,3322.7,3322.6,0.6857]
[1765343062138,5.56430612,3322.7,3322.6,0.6857]
[1765343062338,5.56430612,3322.7,3322.1,0.00210878]
[1765343062534,5.56430612,3322.7,3322.5,1.7724]
[1765343062535,2.10036529,3322.6,3322.5,1.7724]
[1765343065655,1.38676529,3322.6,3322.5,1.7724]
[1765343065851,2.06466529,3322.6,3322.5,1.7724]
[1765343066152,1.38676529,3322.6,3322.5,1.7724]
[1765343067747,3.8763,3322.7,3322.6,1.3953]
[1765343068054,4.53051451,3322.7,3322.6,1.3953]
[1765343068654,5.20841451,3322.7,3322.6,1.3953]
[1765343069447,0.6779,3322.4,3322.3,0.6755]
[1765343069653,1.3464,3322.2,3322.1,1.54789878]
[1765343070356,0.6685,3322.2,3322.1,1.54789878]
[1765343070749,1.3464,3322.2,3322.1,1.54789878]
[1765343071857,4.5542,3322.7,3322.6,1.3953]
[1765343072057,5.2083128,3322.7,3322.6,0.6755]
[1765343072757,5.2083128,3322.7,3322.1,1.77521002]
[1765343072958,2.0005128,3322.6,3322.5,0.6755]
[1765343073158,1.3464,3322.2,3322.1,1.54789878]
[1765343073355,0.6685,3322.2,3322.1,1.54789878]
[1765343073560,3.2078,3322.7,3322.5,0.6755]
[1765343073561,2.00047884,3322.6,3322.5,0.6755]
[1765343075066,2.00047884,3322.6,3322.5,1.8304]
[1765343075467,0.65407884,3322.6,3322.5,1.8304]
[1765343075674,3.2078,3322.7,3322.6,1.3953]
[1765343075969,5.20821781,3322.7,3322.6,1.3953]
[1765343076166,3.2078,3322.7,3322.6,1.3953]
[1765343078768,1.35090999,3323.0,3322.9,1.3953]
[1765343078961,2.00472462,3323.0,3322.9,0.6755]
[1765343079167,1.3464,3322.4,3322.3,1.3953]
[1765343079664,0.6685,3322.4,3322.3,1.3953]
[1765343080971,0.65209885,3322.9,3322.3,1.3953]
[1765343081175,1.09500884,3323.0,3322.3,1.3953]
[1765343081573,1.09500884,3323.0,3322.3,2.32598852]
[1765343081975,2.44140884,3323.0,3322.9,0.6755]
[1765343082367,2.00300884,3323.0,3322.9,1.3953]
[1765343082663,2.00300884,3323.0,3322.9,0.6755]
[1765343082863,2.00300884,3323.0,3322.9,1.3953]
[1765343083070,0.65660884,3323.0,3322.9,1.3953]
[1765343083270,0.00450999,3323.0,3322.9,1.3953]
[1765343083470,0.67300999,3323.0,3322.9,1.3953]
[1765343083674,1.35090999,3323.0,3322.9,1.3953]
[1765343085076,1.35090999,3323.0,3322.9,0.6755]
[1765343085272,1.35090999,3323.0,3322.9,1.3953]
[1765343088381,2.00296821,3323.0,3322.9,1.3953]
[1765343088780,1.3464,3322.7,3322.6,0.82597]
[1765343089381,1.3464,3322.7,3322.6,1.54577]
[1765343089878,1.3464,3322.7,3322.6,0.82597]
[1765343090179,1.3464,3322.7,3322.6,0.15047]
[1765343090880,1.3464,3322.7,3322.6,0.82597]
[1765343092878,0.00450999,3323.0,3322.9,1.54575]
[1765343093071,0.00450999,3323.0,3322.9,2.47643852]
[1765343093377,1.40350999,3323.0,3322.9,1.54575]
[1765343094684,0.00450999,3323.0,3322.9,1.54575]
[1765343095576,8.84e-06,3323.5,3323.4,1.56163]
[1765343095772,1.4536,3324.1,3324.0,0.7383]
[1765343095982,1.4536,3323.7,3323.6,1.4112]
[1765343096778,1.4536,3323.6,3323.5,4.619]
[1765343097686,1.4536,3323.6,3323.5,3.9461]
[1765343097983,1.4536,3323.6,3323.5,5.54968852]
[1765343098277,0.7231,3323.6,3323.5,5.54968852]
[1765343099879,0.7231,3323.6,3323.5,5.95448852]
[1765343100080,0.43260999,3324.0,3323.5,5.95448852]
[1765343100288,1.45810999,3324.0,3323.9,1.4112]
[1765343100789,0.00450999,3324.0,3323.9,1.4112]
[1765343101478,0.72760999,3324.0,3323.9,1.4112]
[1765343101686,1.45810999,3324.0,3323.9,1.4112]
[1765343103381,0.72760999,3324.0,3323.9,1.4112]
[1765343104994,1.45810999,3324.0,3323.9,1.4112]
[1765343105286,1.4536,3323.6,3323.5,4.09653]
[1765343105491,1.4536,3323.6,3323.5,4.76943]
[1765343106998,0.7231,3323.6,3323.5,4.76943]
[1765343107188,1.4536,3323.4,3323.3,0.00450999]
[1765343121104,4.6614,3323.4,3323.3,0.00450999]
[1765343124111,5.30197428,3323.4,3323.3,0.00450999]
[1765343129620,5.30197428,3323.4,3323.3,1.40430999]
[1765343129621,4.6614,3323.4,3323.3,1.40430999]
[1765343129816,4.6614,3323.4,3323.3,0.72990999]
[1765343130019,4.6614,3323.4,3323.3,1.40430999]
[1765343130417,3.8805,3323.8,3323.5,0.417]
[1765343130620,3.8805,3323.8,3323.7,1.3998]
[1765343130819,3.2078,3323.8,3323.7,1.3998]
[1765343131120,0.00450999,3324.0,3323.5,0.417]
[1765343131121,0.00450999,3324.0,3323.9,1.3998]
[1765343133920,1.78690999,3324.0,3323.9,0.7254]
[1765343134228,1.78690999,3324.0,3323.9,1.3998]
[1765343135825,1.35590999,3324.0,3323.9,1.3998]
[1765343136026,0.67720999,3324.0,3323.9,1.3998]
[1765343136326,0.00450999,3324.0,3323.9,1.3998]
[1765343136725,0.67720999,3324.0,3323.9,1.3998]
[1765343136924,1.35590999,3324.0,3323.9,1.3998]
[1765343138024,0.67720999,3324.0,3323.9,1.3998]
[1765343139830,0.00450999,3324.0,3323.9,1.3998]
[1765343141530,0.67720999,3324.0,3323.9,1.3998]
[1765343141731,1.35590999,3324.0,3323.9,1.3998]
[1765343142131,0.67720999,3324.0,3323.9,1.3998]
[1765343142629,0.00450999,3324.0,3323.9,1.3998]
[1765343145334,0.04587635,3324.0,3323.9,1.3998]
[1765343154545,0.71857635,3324.0,3323.9,1.3998]
[1765343159349,0.71857635,3324.0,3323.9,3.01584353]
[1765343160349,0.71857635,3324.0,3323.9,1.3998]
[1765343160547,0.04587635,3324.0,3323.9,1.3998]
[1765343161047,0.73247635,3324.0,3323.9,1.3998]
[1765343161442,1.41,3323.8,3323.7,3.2078]
[1765343161642,1.41,3323.7,3323.6,2.85650853]
[1765343161937,1.41,3323.4,3323.3,1.62067037]
[1765343162145,1.41,3323.4,3323.3,0.00450999]
[1765343162338,2.05347908,3323.4,3323.3,0.00450999]
[1765343162540,2.09484544,3323.4,3323.3,0.00450999]
[1765343162940,0.68484544,3323.4,3323.3,1.45430999]
[1765343163150,0.04136636,3323.4,3323.3,1.45430999]
[1765343163454,0.04136636,3323.4,3323.3,6.27827037]
[1765343164153,0.04136636,3323.4,3323.3,4.66210999]
[1765343164757,0.04136636,3323.4,3323.3,5.59165756]
[1765343165354,0.72796636,3323.4,3323.3,4.66210999]
[1765343165552,1.45136636,3323.4,3323.3,4.66210999]
[1765343165751,0.72796636,3323.4,3323.3,4.66210999]
[1765343166054,0.04136636,3323.4,3323.3,4.66210999]
[1765343166550,1.45136636,3323.4,3323.3,4.66210999]
[1765343166860,0.04136636,3323.4,3323.3,4.66210999]
[1765343168558,0.72796636,3323.4,3323.3,4.66210999]
[1765343169854,0.72796636,3323.4,3323.3,1.45430999]
[1765343170057,1.45136636,3323.4,3323.3,1.45430999]
[1765343170260,1.45136636,3323.4,3323.3,0.71820999]
[1765343170861,1.45136636,3323.4,3323.3,0.00450999]
[1765343171062,0.72796636,3323.4,3323.3,1.45430999]
[1765343171760,1.45136636,3323.4,3323.3,1.45430999]
[1765343172860,1.45136636,3323.4,3323.3,0.71820999]
[1765343173264,1.45136636,3323.4,3323.3,0.00450999]
[1765343173667,1.45136636,3323.4,3323.3,0.68130999]
[1765343173860,1.45136636,3323.4,3323.3,1.42340999]
[1765343174362,0.04136636,3323.4,3323.3,1.42340999]
[1765343174756,1.47096636,3323.4,3323.3,1.42340999]
[1765343174954,1.47096636,3323.4,3323.3,0.00450999]
[1765343175865,1.4296,3323.0,3322.9,1.4189]
[1765343176564,1.47096636,3323.0,3322.9,1.4189]
[1765343178163,0.04136636,3323.0,3322.9,1.4189]
[1765343183571,1.47096636,3323.0,3322.9,1.4189]
[1765343184463,1.88926636,3323.0,3322.9,0.6768]
[1765343185067,1.88926636,3323.0,3322.9,1.3746]
[1765343185866,2.81881393,3323.0,3322.6,1.61616038]
[1765343186072,1.3985,3322.7,3322.6,3.03266038]
[1765343186273,0.7042,3322.7,3322.6,3.03266038]
[1765343186567,0.74556636,3322.7,3322.6,3.03266038]
[1765343186773,0.04136636,3322.7,3322.6,3.03266038]
[1765343189272,0.04136636,3322.7,3322.6,1.4165]
[1765343190569,0.04136636,3322.7,3322.6,2.34604757]
[1765343191469,0.70870999,3324.0,3323.9,1.4165]
[1765343191675,1.82130999,3324.0,3323.9,0.7187]
[1765343192174,1.82130999,3324.0,3323.9,1.4165]
[1765343192568,1.40300999,3324.0,3323.9,1.4165]
[1765343192768,0.00450999,3324.0,3323.9,1.4165]
[1765343193369,0.00450999,3324.0,3323.9,4.6243]
[1765343193568,0.00450999,3324.0,3323.9,6.23616129]
[1765343194373,0.00450999,3324.0,3323.9,4.6243]
[1765343197568,0.8928429,3324.7,3324.4,1.4165]
[1765343197874,0.8928429,3324.7,3324.6,2.34604757]
[1765343198678,0.89540828,3324.7,3324.6,2.34853692]
[1765343199980,0.89540828,3324.7,3324.6,1.41898935]
[1765343200180,0.89540828,3324.7,3324.6,2.34853692]
[1765343201685,0.89540828,3324.7,3324.6,2.49891692]
[1765343207184,1.8168,3326.0,3325.9,1.4165]
[1765343207384,1.8168,3326.0,3325.9,2.34604757]
[1765343207586,1.1225,3326.0,3325.9,2.34604757]
[1765343208090,1.12480512,3326.0,3325.9,2.34604757]
[1765343208386,1.81910512,3326.0,3325.9,0.7187]
[1765343208586,0.42060512,3326.0,3325.5,0.7187]
[1765343208885,0.42060512,3326.0,3325.4,3.9265]
[1765343208886,1.8168,3325.5,3325.4,3.9265]
[1765343209088,1.8168,3325.5,3324.9,3.35816]
[1765343209392,0.4183,3325.5,3325.4,1.4165]
[1765343209687,1.1225,3325.5,3325.4,1.4165]
[1765343209884,1.8168,3325.5,3325.4,0.7187]
[1765343210086,1.3985,3325.4,3325.3,1.64824757]
[1765343211081,1.3985,3325.4,3325.0,0.92954757]
[1765343211287,1.3985,3325.1,3325.0,2.34604757]
[1765343211489,1.8168,3325.5,3325.4,0.7187]
[1765343213291,1.8168,3325.5,3325.4,1.4165]
[1765343213487,4.6243,3325.7,3325.6,1.422]
[1765343213693,4.6243,3325.7,3325.6,0.6954]
[1765343214194,4.6243,3325.7,3325.6,1.422]
[1765343215391,1.4165,3325.7,3325.6,1.422]
[1765343215786,1.4165,3325.7,3324.9,3.35816]
[1765343215988,1.1442,3325.0,3324.9,4.78016]
[1765343216389,1.8502,3325.0,3324.9,4.78016]
[1765343217094,1.8502,3325.0,3324.9,1.57236]
[1765343217295,1.8502,3325.0,3324.9,1.422]
[1765343217696,1.8502,3325.0,3324.9,0.6954]
[1765343218596,1.8502,3325.0,3324.9,1.422]
[1765343221393,1.4165,3324.7,3324.6,0.00248935]
[1765343221598,2.34604757,3324.7,3324.6,0.00248935]
[1765343221798,1.4165,3324.7,3324.6,0.00248935]
[1765343222298,4.6243,3324.7,3324.6,0.00248935]
[1765343223200,5.55384757,3324.7,3324.6,0.00248935]
[1765343225803,5.55384757,3324.7,3324.3,0.00450999]
[1765343225804,1.4165,3324.4,3324.3,0.00450999]
[1765343226008,1.4165,3323.7,3323.6,3.02854249]
[1765343226303,1.4165,3323.6,3323.5,4.6298]
[1765343226707,1.4165,3323.6,3323.5,1.422]
[1765343226904,1.41917962,3323.6,3323.5,1.42514339]
[1765343229211,1.41917962,3323.6,3323.5,0.00314339]
[1765343230810,1.41917962,3323.6,3323.5,0.69854339]
[1765343231210,1.41917962,3323.6,3323.5,0.00314339]
[1765343231713,2.34878999,3323.6,3323.5,0.00314339]
[1765343231908,1.41917962,3323.6,3323.5,0.00314339]
[1765343234619,1.41917962,3323.6,3323.5,1.41884339]
[1765343235517,0.71317962,3323.6,3323.5,1.41884339]
[1765343235718,1.45607962,3323.6,3323.5,1.41884339]
[1765343235917,0.71317962,3323.6,3323.5,1.41884339]
[1765343236112,0.72737962,3323.6,3323.5,1.41884339]
[1765343236520,1.47027962,3323.6,3323.5,1.41884339]
[1765343236914,0.72737962,3323.6,3323.5,1.41884339]
[1765343241926,1.47027962,3323.6,3323.5,0.72364339]
[1765343242128,1.47027962,3323.6,3323.5,1.41884339]
[1765343242326,1.47027962,3323.6,3323.5,0.00314339]
[1765343242723,1.47027962,3323.6,3323.5,0.72364339]
[1765343246335,1.47027962,3323.6,3323.5,1.41884339]
[1765343246536,1.47027962,3323.6,3323.5,0.72364339]
[1765343247739,1.47027962,3323.6,3323.5,1.41014339]
[1765343248638,1.47027962,3323.6,3323.5,0.72364339]
[1765343249226,1.47027962,3323.6,3323.5,1.41014339]
[1765343249432,0.72737962,3323.6,3323.5,1.41014339]
[1765343249632,1.45087962,3323.6,3323.5,1.41014339]
[1765343249941,1.45087962,3323.6,3323.5,0.00314339]
[1765343250438,1.45087962,3323.6,3323.5,0.70354339]
[1765343253135,1.45087962,3323.6,3323.5,1.39004339]
[1765343253642,1.45087962,3323.6,3323.5,0.70354339]
[1765343254742,1.45087962,3323.6,3323.2,0.00450999]
[1765343254743,1.4509,3323.3,3323.2,0.00450999]
[1765343255135,2.08912796,3323.3,3323.2,0.00450999]
[1765343255338,1.4509,3323.3,3323.2,0.00450999]
[1765343255540,2.08941673,3323.3,3323.2,0.00450999]
[1765343256043,2.08941673,3323.3,3323.2,0.00766895]
[1765343258348,1.4509,3323.3,3323.2,0.00766895]
[1765343259644,2.09100408,3323.3,3323.2,0.00766895]
[1765343259953,1.4509,3322.6,3322.5,5.51474249]
[1765343260741,1.4509,3322.6,3322.5,5.51736735]
[1765343262551,1.4509,3322.6,3322.5,0.70302486]
[1765343263452,1.4509,3322.6,3322.5,0.00262486]
[1765343272054,3.2078,3322.7,3322.0,4.81434249]
[1765343272259,1.4509,3322.1,3322.0,3.2078]
[1765343273150,1.4509,3322.1,3322.0,3.9110158]
[1765343273349,1.4509,3322.1,3322.0,3.2106158]
[1765343277256,1.4509,3322.1,3322.0,3.9303158]
[1765343277453,1.4509,3322.1,3322.0,0.7225158]
[1765343277659,4.6587,3322.1,3322.0,0.7225158]
[1765343278261,4.6587,3322.1,3322.0,1.3954158]
[1765343278766,3.2078,3322.1,3322.0,1.3954158]
[1765343279066,1.8607,3322.5,3322.4,1.3926]
[1765343280861,1.4151,3322.1,3322.0,0.0028158]
[1765343281264,1.4151,3322.1,3322.0,0.7225158]
[1765343282162,1.8607,3322.5,3322.4,0.7197]
[1765343282865,0.6973,3322.1,3322.0,1.3954158]
[1765343283559,0.4456,3322.5,3322.0,1.3954158]
[1765343284061,3.6534,3322.5,3322.0,1.3954158]
[1765343284275,5.0685,3322.5,3322.4,0.7197]
[1765343284766,1.8607,3322.5,3322.4,1.3926]
[1765343285364,0.6973,3322.7,3322.6,1.3926]
[1765343285663,1.4151,3322.7,3322.6,1.3926]
[1765343286368,1.4151,3322.7,3322.6,0.7197]
[1765343287666,1.4151,3322.7,3322.6,1.4081]
[1765343287970,0.6973,3322.7,3322.6,1.4081]
[1765343288173,3.12861774,3322.9,3322.8,1.4144]
[1765343288668,1.71021774,3322.9,3322.8,2.34457273]
[1765343288964,3.9501,3323.2,3323.1,1.4144]
[1765343289353,4.6262,3323.2,3323.1,0.726]
[1765343289961,4.6262,3323.2,3323.1,1.4144]
[1765343290555,3.9501,3323.2,3323.1,1.4144]
[1765343291158,1.1879,3323.5,3323.4,1.4144]
[1765343291363,1.864,3323.5,3323.4,2.34457273]
[1765343291864,0.00267962,3323.6,3323.5,1.623]
[1765343293364,0.74497962,3323.6,3323.5,1.4144]
[1765343294468,0.00267962,3323.6,3323.5,1.4144]
[1765343295168,0.00267962,3323.6,3323.5,1.623]
[1765343296169,1.42107962,3323.6,3323.5,1.4144]
[1765343297369,0.74497962,3323.6,3323.5,1.4144]
[1765343297672,0.00267962,3323.6,3323.5,1.4144]
[1765343298971,0.74497962,3323.6,3323.5,1.4144]
[1765343299174,0.7423,3323.3,3323.2,5.70281273]
[1765343299372,1.8604,3323.5,3323.4,0.726]
[1765343299668,1.4184,3323.3,3323.2,5.70281273]
[1765343299865,0.442,3323.5,3322.8,1.60654249]
[1765343299866,1.4184,3323.1,3323.0,2.34457273]
[1765343300571,1.4184,3323.1,3323.0,0.726]
[1765343300974,1.4184,3323.1,3323.0,1.4144]
[1765343301363,0.442,3323.5,3323.0,1.4144]
[1765343301569,1.4184,3323.2,3323.1,2.34457273]
[1765343302674,1.8604,3323.5,3323.4,0.726]
[1765343302874,1.4184,3323.2,3323.1,2.34457273]
[1765343304763,0.442,3323.5,3323.4,1.4449]
[1765343304764,1.9129,3323.5,3323.4,1.4449]
[1765343304969,1.9129,3323.5,3323.4,0.7119]
[1765343305274,1.9129,3323.5,3323.4,1.4449]
[1765343305670,1.4709,3323.2,3323.1,2.37507273]
[1765343306387,1.4709,3323.2,3323.1,1.4449]
[1765343307586,1.4709,3323.2,3323.1,0.7119]
[1765343310081,1.4709,3323.2,3323.1,1.4449]
[1765343310280,1.4709,3323.2,3323.1,0.7119]
[1765343310985,1.4709,3322.8,3322.7,1.60654249]
[1765343311181,1.4709,3322.4,3322.3,5.52624249]
[1765343311382,1.4709,3322.4,3322.3,3.9197]
[1765343311683,1.4709,3322.4,3322.3,4.6527]
[1765343311881,0.4106,3323.0,3322.4,1.4449]
[1765343312179,1.8815,3323.0,3322.9,0.7119]
[1765343312384,1.8815,3323.0,3322.3,4.13797273]
[1765343312583,1.8815,3323.0,3322.9,0.7119]
[1765343312787,0.4106,3323.0,3322.5,2.37507273]
[1765343313086,1.8815,3323.0,3322.9,0.7119]
[1765343313478,0.7337,3322.6,3322.5,1.64207273]
[1765343313684,0.7337,3322.6,3322.5,2.37507273]
[1765343313883,0.4106,3323.0,3322.5,2.37507273]
[1765343314087,1.8815,3323.0,3322.9,0.7119]
[1765343314783,1.1478,3322.5,3322.4,0.7119]
[1765343314982,1.4709,3322.4,3322.3,3.2078]
[1765343315385,1.4709,3322.4,3322.3,3.9197]
[1765343315583,1.4709,3322.4,3322.3,4.6527]
[1765343315784,1.4709,3322.4,3322.3,3.9197]
[1765343315983,1.4709,3322.4,3322.3,0.7119]
[1765343316692,1.4709,3322.4,3322.3,1.4449]
[1765343316886,1.4709,3322.4,3322.3,0.7119]
[1765343320197,1.4709,3322.1,3322.0,0.0028158]
[1765343320393,1.4709,3322.1,3322.0,0.7147158]
[1765343320697,1.4709,3322.1,3322.0,1.4477158]
[1765343320882,1.4709,3322.1,3322.0,0.7147158]
[1765343321589,1.4709,3322.1,3322.0,1.4477158]
[1765343322295,1.4709,3322.1,3322.0,0.7147158]
[1765343322596,1.4709,3322.1,3322.0,0.0028158]
[1765343340704,1.856,3321.5,3321.4,1.02224454]
[1765343340909,6.63566264,3321.5,3321.4,1.02224454]
[1765343341107,5.70548991,3321.5,3321.4,1.02224454]
[1765343341412,4.26128991,3321.5,3320.9,0.0008]
[1765343341607,5.99397273,3321.0,3320.9,0.00431412]
[1765343341806,5.99667512,3321.0,3320.9,0.00351412]
[1765343344606,4.65470239,3321.0,3320.9,0.00351412]
[1765343344813,5.06650239,3321.0,3320.9,1.45411412]
[1765343345110,3.92140239,3321.0,3320.9,1.45411412]
[1765343345508,4.65470239,3321.0,3320.9,1.45411412]
[1765343346106,3.21050239,3321.0,3320.9,1.45411412]
[1765343346507,0.00270239,3321.0,3320.9,1.45411412]
[1765343347210,0.00270239,3321.0,3320.9,7.45411412]
[1765343347612,3.2078,3321.4,3320.9,8.38505007]
[1765343347807,3.2078,3321.4,3321.3,1.4699]
[1765343348609,3.21230999,3321.8,3321.3,1.4699]
[1765343348809,0.0027837,3321.4,3321.3,1.4699]
[1765343352712,1.4499837,3321.4,3321.3,1.4699]
[1765343353113,0.7330837,3321.4,3321.3,1.4699]
[1765343353617,0.0027837,3321.4,3321.3,1.4699]
[1765343353818,0.7330837,3321.4,3321.3,1.4699]
[1765343354616,0.0027837,3321.4,3321.3,1.4699]
[1765343358312,1.4499837,3321.4,3321.3,1.4699]
[1765343359210,1.4499837,3321.4,3321.3,0.7369]
[1765343359912,1.4499837,3321.4,3321.3,1.4699]
[1765343360108,1.4472,3321.3,3321.2,1.4699]
[1765343360314,0.0027837,3321.4,3321.3,1.4699]
[1765343361316,0.7330837,3321.4,3321.3,1.4699]
[1765343362416,0.0027837,3321.4,3321.3,1.4699]
[1765343362716,0.7330837,3321.4,3321.3,1.4699]
[1765343373231,0.7330837,3321.4,3321.3,3.07644249]
[1765343373423,1.4083837,3321.4,3321.3,3.05414249]
[1765343374126,0.0027837,3321.4,3321.3,3.05414249]
[1765343374934,0.0027837,3321.4,3321.3,1.4476]
[1765343376227,0.0027837,3321.4,3321.3,1.59813]
[1765343376431,3.21230999,3321.8,3321.7,1.3901]
[1765343376934,0.00450999,3321.8,3321.7,3.00552178]
[1765343377133,0.00450999,3321.8,3321.7,3.15603178]
[1765343377334,0.00694086,3321.8,3321.7,3.15603178]
[1765343377534,0.00694086,3321.8,3321.7,1.54061]
[1765343386843,1.39044086,3321.8,3321.7,1.54061]
[1765343387042,1.39044086,3321.8,3321.7,3.00498833]
[1765343387235,1.39044086,3321.8,3321.7,1.61488833]
[1765343387440,1.39044086,3321.8,3321.7,2.29428833]
[1765343387642,1.39044086,3321.8,3321.7,1.61488833]
[1765343387943,1.3835,3321.7,3321.6,1.61488833]
[1765343388447,1.3835,3321.7,3321.6,3.00498833]
[1765343388944,0.7082,3321.7,3321.6,3.00498833]
[1765343390346,1.3835,3321.7,3321.6,3.00498833]
[1765343390746,0.7082,3321.7,3321.6,3.00498833]
[1765343391948,1.3835,3321.7,3321.6,3.00498833]
[1765343397348,1.3835,3321.7,3321.6,1.61488833]
[1765343397643,1.4132,3321.4,3321.3,2.29028833]
[1765343398237,1.4132,3321.4,3321.3,0.6754]
[1765343400351,0.673,3321.4,3321.3,1.3688]
[1765343400552,4.621,3321.7,3321.6,0.6754]
[1765343400754,5.26483486,3321.7,3321.6,0.6754]
[1765343401049,0.673,3321.3,3321.2,2.98368833]
[1765343401555,1.4132,3321.3,3321.2,2.98368833]
[1765343401753,1.4132,3321.3,3321.2,1.61488833]
[1765343402152,3.2078,3321.7,3321.4,0.6754]
[1765343402349,1.4132,3321.5,3321.4,1.3688]
[1765343406457,0.673,3321.5,3321.4,1.3688]
[1765343408553,3.2078,3321.7,3321.6,1.4434]
[1765343408763,3.9346,3321.7,3321.6,1.4434]
[1765343409058,4.6502,3321.7,3321.6,1.4434]
[1765343411255,4.6502,3321.7,3321.6,0.7322]
[1765343412061,1.44934086,3321.8,3321.7,1.4434]
[1765343412259,1.44934086,3321.8,3321.7,0.7322]
[1765343413563,1.4424,3321.6,3321.5,0.7322]
[1765343414565,1.4424,3321.6,3321.5,1.4434]
[1765343416555,1.8441,3321.5,3321.4,1.61488833]
[1765343416959,1.8441,3321.5,3321.3,2.34708833]
[1765343416960,1.4424,3321.4,3321.3,2.34708833]
[1765343417163,1.4424,3321.4,3321.3,3.05828833]
[1765343417467,0.00694086,3321.8,3321.7,0.7322]
[1765343417468,1.44934086,3321.8,3321.7,0.7322]
[1765343417768,2.09343695,3321.8,3321.7,0.7322]
[1765343417963,0.00694086,3321.8,3321.7,1.4434]
[1765343418354,0.73374086,3321.8,3321.7,1.4434]
[1765343418959,1.44934086,3321.8,3321.7,1.4434]
[1765343419460,0.7156,3321.6,3321.5,1.4434]
[1765343419662,1.8441,3321.5,3321.4,2.34708833]
[1765343419866,0.7268,3321.5,3321.4,3.05828833]
[1765343424361,0.7268,3321.5,3321.4,1.4434]
[1765343424873,1.43514086,3321.8,3321.7,1.4196]
[1765343425978,1.43514086,3321.8,3321.7,0.7322]
[1765343426365,1.3938,3321.6,3321.5,2.30396328]
[1765343426680,1.8375,3321.5,3321.4,1.61466328]
[1765343427175,1.8375,3321.5,3321.4,2.99136328]
[1765343427474,1.3938,3321.5,3321.4,2.99136328]
[1765343428672,1.8375,3321.5,3321.4,2.30396328]
[1765343428873,1.8375,3321.5,3321.4,0.6893]
[1765343429073,1.3938,3321.3,3321.2,2.99136328]
[1765343429785,4.6016,3321.6,3321.5,1.3767]
[1765343430080,5.24613405,3321.6,3321.5,1.3767]
[1765343430282,1.3938,3321.3,3321.2,2.99136328]
[1765343432885,0.6924,3321.5,3321.4,1.3767]